fUST/lending_fUST_20260316
["ID","MTS","AMOUNT","RATE_DAILY","PERIOD"]
[408446399,1773642639655,-2230.315306,0.0001343,2]
[408446401,1773642639664,-445.202766,0.00013453,2]
[408446403,1773642639673,-151.30762204,0.00013453,2]
[408446406,1773642639683,-500.0,0.00013453,2]
[408446408,1773642639692,-500.0,0.00013453,2]
[408446410,1773642639701,-500.0,0.00013453,2]
[408446412,1773642639710,-500.0,0.00013453,2]
[408446414,1773642639719,-151.0,0.00013453,2]
[408446416,1773642639729,-151.0,0.00013453,2]
[408446417,1773642639737,-151.0,0.00013453,2]
[408446418,1773642639746,-151.0,0.00013453,2]
[408446419,1773642639755,-151.0,0.00013453,2]
[408446420,1773642639765,-151.0,0.00013453,2]
[408446422,1773642639775,-151.0,0.00013453,2]
[408446423,1773642639784,-151.0,0.00013453,2]
[408446424,1773642639794,-151.0,0.00013453,2]
[408446425,1773642639804,-151.0,0.00013453,2]
[408446426,1773642639815,-251.06158,0.00013453,2]
[408446427,1773642639826,-151.0,0.00013453,2]
[408446428,1773642639835,-151.0,0.00013453,2]
[408446429,1773642639844,-151.0,0.00013453,2]
[408446430,1773642639854,-151.0,0.00013453,2]
[408446431,1773642639863,-151.0,0.00013453,2]
[408446432,1773642639872,-151.0,0.00013453,2]
[408446433,1773642639882,-151.0,0.00013453,2]
[408446434,1773642639892,-151.0,0.00013453,2]
[408446435,1773642639902,-151.0,0.00013453,2]
[408446436,1773642639911,-152.72355572,0.00013453,2]
[408446438,1773642639920,-151.0,0.0001346,2]
[408446439,1773642639929,-151.0,0.0001346,2]
[408446440,1773642639940,-151.0,0.0001346,2]
[408446441,1773642639951,-151.0,0.00013461,2]
[408446442,1773642639961,-151.0,0.00013461,2]
[408446443,1773642639970,-151.0,0.00013461,2]
[408446444,1773642639979,-151.0,0.00013461,2]
[408446445,1773642639989,-151.0,0.00013461,2]
[408446446,1773642639999,-178.618768,0.00013461,2]
[408446447,1773642640009,-779763.89611815,0.00013461,2]
[408446448,1773642640019,-719.34,0.00013461,2]
[408446449,1773642640028,-719.34,0.00013461,2]
[408446450,1773642640038,-719.34,0.00013461,2]
[408446451,1773642640047,-719.34,0.00013461,2]
[408446452,1773642640057,-719.34,0.00013461,2]
[408446453,1773642640066,-719.34,0.00013461,2]
[408446454,1773642640075,-719.34,0.00013461,2]
[408446455,1773642640085,-719.34,0.00013461,2]
[408446456,1773642640094,-719.34,0.00013461,2]
[408446457,1773642640102,-719.34,0.00013461,2]
[408446458,1773642640112,-719.34,0.00013461,2]
[408446459,1773642640121,-719.34,0.00013461,2]
[408446460,1773642640131,-719.34,0.00013461,2]
[408446461,1773642640139,-1227.02,0.00013461,2]
[408446462,1773642640148,-151.0,0.000135,2]
[408446463,1773642640158,-151.0,0.000135,2]
[408446464,1773642640167,-151.0,0.000135,2]
[408446465,1773642640176,-151.0,0.000135,2]
[408446466,1773642640186,-151.0,0.000135,2]
[408446467,1773642640195,-151.0,0.000135,2]
[408446468,1773642640204,-151.0,0.000135,2]
[408446469,1773642640214,-1022.69594612,0.00013551,2]
[408446470,1773642640224,-2147.25323777,0.00013551,2]
[408446471,1773642640234,-20177.96167507,0.00013561,2]
[408446472,1773642640245,-199469.62726928,0.00013561,2]
[408446473,1773642640255,-166.0,0.00013561,2]
[408446474,1773642640264,-234.07877196,0.00013561,2]
[408446475,1773642640273,-151.0,0.00013561,2]
[408446476,1773642640282,-151.0,0.00013561,2]
[408446477,1773642640293,-151.0,0.00013561,2]
[408446478,1773642640302,-151.0,0.00013561,2]
[408446479,1773642640312,-151.0,0.00013561,2]
[408446480,1773642640321,-3000.0,0.00013561,2]
[408446481,1773642640331,-3000.0,0.00013561,2]
[408446482,1773642640340,-3000.0,0.00013561,2]
[408446483,1773642640349,-1853.313402,0.00013561,2]
[408446484,1773642640360,-758.272363,0.00013595,2]
[408446485,1773642640369,-14337.9506202,0.00013598,2]
[408446486,1773642640378,-151.0,0.000136,2]
[408446487,1773642640387,-151.0,0.000136,2]
[408446488,1773642640396,-151.0,0.000136,2]
[408446489,1773642640406,-1295.26322851,0.00013607,7]
[408446490,1773642640415,-500.0,0.00013633,2]
[408446491,1773642640424,-551.7,0.00013698,2]
[408446492,1773642640433,-551.7,0.00013698,2]
[408446493,1773642640442,-551.7,0.00013698,2]
[408446494,1773642640451,-551.7,0.00013698,2]
[408446495,1773642640460,-551.7,0.00013698,2]
[408446496,1773642640469,-551.7,0.00013698,2]
[408446497,1773642640479,-551.7,0.00013698,2]
[408446498,1773642640488,-551.7,0.00013698,2]
[408446499,1773642640497,-551.7,0.00013698,2]
[408446500,1773642640506,-551.7,0.00013698,2]
[408446501,1773642640515,-551.7,0.00013698,2]
[408446502,1773642640524,-551.7,0.00013698,2]
[408446503,1773642640533,-551.7,0.00013698,2]
[408446504,1773642640544,-551.7,0.00013698,2]
[408446505,1773642640554,-551.7,0.00013698,2]
[408446506,1773642640563,-551.7,0.00013698,2]
[408446507,1773642640572,-551.7,0.00013698,2]
[408446508,1773642640581,-551.7,0.00013698,2]
[408446509,1773642640590,-551.7,0.00013698,2]
[408446510,1773642640599,-551.7,0.00013698,2]
[408446511,1773642640610,-551.7,0.00013698,2]
[408446512,1773642640620,-551.7,0.00013698,2]
[408446513,1773642640630,-551.7,0.00013698,2]
[408446514,1773642640639,-551.93093711,0.00013698,2]
[408446515,1773642640648,-500.0,0.00013698,2]
[408446516,1773642640658,-500.0,0.00013698,2]
[408446517,1773642640667,-500.0,0.00013698,2]
[408446518,1773642640676,-500.0,0.00013698,2]
[408446519,1773642640685,-500.0,0.00013698,2]
[408446520,1773642640694,-500.0,0.00013698,2]
[408446521,1773642640703,-500.0,0.00013698,2]
[408446522,1773642640713,-500.0,0.00013698,2]
[408446523,1773642640722,-500.0,0.00013698,2]
[408446524,1773642640732,-500.0,0.00013698,2]
[408446525,1773642640741,-500.0,0.00013698,2]
[408446526,1773642640752,-500.0,0.00013698,2]
[408446527,1773642640761,-500.0,0.00013698,2]
[408446528,1773642640770,-532.63043554,0.00013698,2]
[408446529,1773642640780,-15134.03,0.00013698,2]
[408446530,1773642640789,-15134.03,0.00013698,2]
[408446531,1773642640800,-15134.03,0.00013698,2]
[408446532,1773642640810,-15134.03,0.00013698,2]
[408446533,1773642640824,-15134.03,0.00013698,2]
[408446534,1773642640834,-15134.03,0.00013698,2]
[408446535,1773642640845,-15134.03,0.00013698,2]
[408446536,1773642640855,-15134.03,0.00013698,2]
[408446537,1773642640865,-15134.03,0.00013698,2]
[408446538,1773642640875,-15134.03,0.00013698,2]
[408446539,1773642640885,-15134.03,0.00013698,2]
[408446540,1773642640896,-15134.03,0.00013698,2]
[408446541,1773642640905,-15134.03,0.00013698,2]
[408446542,1773642640914,-15134.03,0.00013698,2]
[408446543,1773642640925,-15134.03,0.00013698,2]
[408446544,1773642640934,-15134.03,0.00013698,2]
[408446545,1773642640943,-15134.03,0.00013698,2]
[408446546,1773642640952,-15134.03,0.00013698,2]
[408446547,1773642640961,-15134.03,0.00013698,2]
[408446548,1773642640971,-2833.43143204,0.00013698,2]
[408446549,1773642640986,-6677.0,0.00013698,2]
[408446550,1773642640998,-536.10490332,0.00013698,2]
[408446551,1773642641008,-5087.49366464,0.00013698,2]
[408446552,1773642641018,-15134.03,0.00013698,2]
[408446553,1773642641028,-15134.03,0.00013698,2]
[408446554,1773642641037,-15134.03,0.00013698,2]
[408446555,1773642641047,-15134.19343176,0.00013698,2]
[408446556,1773642641056,-500.0,0.00013698,2]
[408446557,1773642641065,-500.0,0.00013698,2]
[408446558,1773642641075,-500.0,0.00013698,2]
[408446559,1773642641084,-500.62360102,0.00013698,2]
[408446560,1773642641093,-500.0,0.00013698,2]
[408446561,1773642641103,-511.28091518,0.00013698,2]
[408446562,1773642641112,-659.73,0.00013698,2]
[408446563,1773642641121,-204.58838742,0.00013698,2]
[408446564,1773642641275,-861.46809932,0.00013425,2]
[408446574,1773642645836,-2239.07457887,0.00013425,2]
[408446640,1773643831823,-181.72,0.0001,7]
[408446641,1773643831833,-4213.6258226,0.00011505,2]
[408446642,1773643831843,-160.0,0.00011805,2]
[408446643,1773643831852,-419.0,0.00012163,2]
[408446644,1773643831863,-10000.0,0.00012164,2]
[408446645,1773643831872,-1818.12612644,0.00012362,2]
[408446646,1773643831882,-677.0782471,0.00012362,2]
[408446797,1773643838096,-435.0,0.00012362,2]
[408446804,1773643838161,-2243.00493691,0.00012362,2]
[408446807,1773643838170,-1197.3534388,0.00012595,2]
[408446890,1773643842939,-121.8635612,0.00012595,2]
[408446892,1773643842949,-443.5864388,0.00012595,2]
[408446919,1773643846126,-195.4135612,0.00012595,2]
[408446920,1773643846135,-2194.0,0.00012595,2]
[408446921,1773643846145,-3296.97058827,0.0001265,2]
[408446922,1773643846157,-2837.98125049,0.00012779,2]
[408446923,1773643846166,-3630.28013035,0.00012779,2]
[408446924,1773643846177,-1196.20833484,0.00012779,2]
[408446925,1773643846186,-324.6699664,0.0001289,2]
[408446926,1773643846197,-2150.738,0.00012912,2]
[408446927,1773643846206,-350.72492,0.00012913,2]
[408446928,1773643846215,-324.6217391,0.00013029,2]
[408446929,1773643846225,-847.64040168,0.000134,7]
[408446930,1773643846234,-268.0,0.000134,30]
[408446931,1773643846243,-246.37843223,0.00013402,5]
[408446932,1773643846252,-261.5028675,0.00013417,2]
[408446933,1773643846261,-500.0,0.00013421,2]
[408446934,1773643846270,-500.0,0.00013421,2]
[408446935,1773643846279,-500.0,0.00013421,2]
[408446936,1773643846288,-320.21079996,0.00013421,2]
[408446937,1773643846296,-500.0,0.00013421,2]
[408446938,1773643846305,-500.0,0.00013421,2]
[408446939,1773643846314,-500.0,0.00013421,2]
[408446940,1773643846323,-500.0,0.00013421,2]
[408446941,1773643846332,-500.0,0.00013421,2]
[408446942,1773643846340,-500.0,0.00013421,2]
[408446943,1773643846349,-500.0,0.00013421,2]
[408446944,1773643846358,-500.0,0.00013421,2]
[408446945,1773643846367,-500.0,0.00013421,2]
[408446946,1773643846376,-500.0,0.00013421,2]
[408446947,1773643846385,-500.0,0.00013421,2]
[408446948,1773643846394,-500.0,0.00013421,2]
[408446949,1773643846402,-500.0,0.00013421,2]
[408446950,1773643846411,-500.0,0.00013421,2]
[408446951,1773643846422,-500.0,0.00013421,2]
[408446952,1773643846431,-500.0,0.00013421,2]
[408446953,1773643846440,-500.0,0.00013421,2]
[408446954,1773643846448,-500.0,0.00013421,2]
[408446955,1773643846457,-500.0,0.00013421,2]
[408446956,1773643846466,-500.0,0.00013421,2]
[408446957,1773643846475,-500.0,0.00013421,2]
[408446958,1773643846484,-500.0,0.00013421,2]
[408446959,1773643846493,-500.0,0.00013421,2]
[408446960,1773643846503,-500.0,0.00013421,2]
[408446961,1773643846512,-500.0,0.00013421,2]
[408446962,1773643846522,-500.0,0.00013421,2]
[408446963,1773643846531,-288.69984643,0.00013421,2]
[408446964,1773643846539,-500.0,0.00013421,2]
[408446965,1773643846549,-500.0,0.00013421,2]
[408446966,1773643846558,-500.0,0.00013421,2]
[408446967,1773643846567,-500.0,0.00013421,2]
[408446968,1773643846576,-198.20840495,0.00013421,2]
[408446969,1773643846585,-500.0,0.00013421,2]
[408446970,1773643846595,-500.0,0.00013421,2]
[408446971,1773643846604,-500.0,0.00013421,2]
[408446972,1773643846613,-500.0,0.00013421,2]
[408446973,1773643846623,-500.0,0.00013421,2]
[408446974,1773643846632,-500.0,0.00013421,2]
[408446975,1773643846641,-500.0,0.00013421,2]
[408446976,1773643846650,-500.0,0.00013421,2]
[408446977,1773643846902,-500.0,0.00013421,2]
[408446978,1773643846911,-500.0,0.00013421,2]
[408446979,1773643846921,-500.0,0.00013421,2]
[408446980,1773643846930,-500.0,0.00013421,2]
[408446981,1773643846940,-500.0,0.00013421,2]
[408446982,1773643846948,-500.0,0.00013422,2]
[408446983,1773643846957,-500.0,0.00013424,2]
[408446984,1773643846966,-235.34832564,0.00013424,2]
[408446985,1773643846975,-500.0,0.00013424,2]
[408446986,1773643846984,-500.0,0.00013424,2]
[408446987,1773643846993,-500.0,0.00013424,2]
[408446988,1773643847002,-500.0,0.00013424,2]
[408446989,1773643847011,-500.0,0.00013424,2]
[408446990,1773643847019,-500.0,0.00013424,2]
[408446991,1773643847028,-500.0,0.00013424,2]
[408446992,1773643847037,-500.0,0.00013424,2]
[408446993,1773643847046,-500.0,0.00013424,2]
[408446994,1773643847055,-500.0,0.00013424,2]
[408446995,1773643847064,-500.0,0.00013424,2]
[408446996,1773643847073,-500.0,0.00013424,2]
[408446997,1773643847082,-500.0,0.00013424,2]
[408446998,1773643847091,-500.0,0.00013424,2]
[408446999,1773643847099,-500.0,0.00013424,2]
[408447000,1773643847109,-500.0,0.00013424,2]
[408447001,1773643847118,-500.0,0.00013424,2]
[408447002,1773643847127,-500.0,0.00013424,2]
[408447003,1773643847135,-500.0,0.00013424,2]
[408447004,1773643847144,-500.0,0.00013424,2]
[408447005,1773643847157,-500.0,0.00013424,2]
[408447006,1773643847166,-411.60982216,0.00013424,2]
[408447007,1773643847174,-500.0,0.00013424,2]
[408447008,1773643847183,-500.0,0.00013424,2]
[408447009,1773643847193,-500.0,0.00013424,2]
[408447010,1773643847202,-500.0,0.00013424,2]
[408447011,1773643847211,-500.0,0.00013424,2]
[408447012,1773643847220,-200.0,0.00013424,2]
[408447013,1773643847231,-10407.25847046,0.00013425,2]
[408447014,1773643952579,164.0,0.0001,120]
[408447016,1773644510226,-221.62483971,0.00011941,7]
[408447017,1773644527360,-200.76547727,0.00012395,2]
[408447018,1773644556361,-271.62483971,9.999e-05,2]
[408447030,1773644710378,174.0,2.7e-07,2]
[408447031,1773644711463,174.0,2.7e-07,2]
[408447032,1773644713099,174.0,2.7e-07,2]
[408447033,1773644714286,174.0,2.7e-07,2]
[408447086,1773645031979,-560.23240597,9.702e-05,2]
[408447093,1773645032041,-739.76759403,9.702e-05,2]
[408447095,1773645032050,-500.0,9.999e-05,2]
[408447097,1773645032060,-500.0,9.999e-05,2]
[408447099,1773645032069,-500.0,9.999e-05,2]
[408447101,1773645032078,-500.0,9.999e-05,2]
[408447103,1773645032087,-500.0,9.999e-05,2]
[408447105,1773645032096,-500.0,9.999e-05,2]
[408447107,1773645032106,-500.0,9.999e-05,2]
[408447109,1773645032115,-438.99373838,9.999e-05,2]
[408447112,1773645032124,-500.0,9.999e-05,2]
[408447114,1773645032133,-500.0,9.999e-05,2]
[408447116,1773645032142,-478.45184504,9.999e-05,2]
[408447118,1773645032152,-500.0,9.999e-05,2]
[408447120,1773645032161,-500.0,9.999e-05,2]
[408447122,1773645032170,-500.0,9.999e-05,2]
[408447125,1773645032179,-500.0,9.999e-05,2]
[408447127,1773645032188,-500.0,9.999e-05,2]
[408447129,1773645032197,-500.0,9.999e-05,2]
[408447131,1773645032206,-2129.43099723,0.0001,2]
[408447133,1773645032215,-2901.43107764,0.0001,2]
[408447135,1773645032224,-291.04031411,0.0001,2]
[408447137,1773645032233,-529.09704081,0.0001,2]
[408447139,1773645032244,-469.74779629,0.0001,2]
[408447141,1773645032255,-281.332,0.0001,2]
[408447210,1773645038099,-14643.02870492,0.0001,2]
[408447211,1773645038112,-943.065,0.0001,2]
[408447212,1773645038129,-2075.00998034,0.0001,2]
[408447341,1773645044705,-585.75366434,0.0001,2]
[408447353,1773645046142,-50221.81353459,0.0001,2]
[408447354,1773645046155,-1077.33476705,0.0001,2]
[408447355,1773645046167,-29173.81751166,0.0001,2]
[408447356,1773645046176,-1000.0,0.0001,2]
[408447357,1773645046185,-3465.50537911,0.0001,2]
[408447358,1773645046194,-1281.97101503,0.0001,2]
[408447359,1773645046204,-1925.87486597,0.0001,2]
[408447360,1773645046213,-500.0,0.0001,2]
[408447361,1773645046224,-500.0,0.000102,2]
[408447362,1773645046234,-500.0,0.00010547,2]
[408447363,1773645046243,-214.74382795,0.00010547,2]
[408447364,1773645046254,-500.0,0.00010547,2]
[408447365,1773645046263,-500.0,0.00010547,2]
[408447366,1773645046272,-500.0,0.00010547,2]
[408447367,1773645046281,-500.0,0.00010547,2]
[408447368,1773645046291,-500.0,0.00010547,2]
[408447369,1773645046301,-500.0,0.00010547,2]
[408447370,1773645046312,-500.0,0.00010547,2]
[408447371,1773645046320,-500.0,0.00010547,2]
[408447372,1773645046329,-500.0,0.00010547,2]
[408447373,1773645046339,-500.0,0.00010547,2]
[408447374,1773645046348,-421.88312721,0.00010547,2]
[408447375,1773645046358,-500.0,0.00010547,2]
[408447376,1773645046366,-500.0,0.00010547,2]
[408447377,1773645046383,-500.0,0.00010547,2]
[408447378,1773645046393,-500.0,0.00010547,2]
[408447379,1773645046401,-500.0,0.00010547,2]
[408447380,1773645046411,-500.0,0.00010547,2]
[408447381,1773645046421,-500.0,0.00010547,2]
[408447382,1773645046431,-545.31818905,0.00010547,2]
[408447383,1773645046442,-1000.0,0.00010548,2]
[408447384,1773645046453,-427.31612796,0.00010618,2]
[408447385,1773645046462,-388.72226269,0.00010748,2]
[408447386,1773645046472,-1228.6013553,0.00011096,2]
[408447387,1773645046482,-2905.2144998,0.00011809,2]
[408447388,1773645046491,-572.5179733,0.0001188,2]
[408447389,1773645046503,-104625.98984292,0.00012,2]
[408447434,1773646232222,-1670.13110078,0.00010208,2]
[408447436,1773646232232,-117.68013481,0.00010311,2]
[408447554,1773646238325,-447.31986519,0.00010311,2]
[408447556,1773646238334,-546.62725478,0.00010415,2]
[408447558,1773646238343,-7693.4338205,0.00010945,2]
[408447560,1773646238352,-1945.5630683,0.00010945,2]
[408447561,1773646238361,-321.0664007,0.00010945,2]
[408447564,1773646238371,-2076.2644098,0.00010988,2]
[408447566,1773646238380,-497.60576056,0.00010999,2]
[408447568,1773646238389,-228.37516029,0.00010999,2]
[408447570,1773646238399,-500.0,0.00010999,2]
[408447572,1773646238408,-437.66597093,0.00010999,2]
[408447574,1773646238417,-500.0,0.00010999,2]
[408447576,1773646238426,-500.0,0.00010999,2]
[408447578,1773646238435,-500.0,0.00010999,2]
[408447580,1773646238444,-177.02107999,0.00010999,2]
[408447582,1773646238453,-500.0,0.00010999,2]
[408447583,1773646238462,-34820.11263684,0.00011,2]
[408447586,1773646238474,-3233.56746409,0.00011,2]
[408447711,1773646246312,-1680.12722241,0.00011,2]
[408447712,1773646246448,-262.071,0.00011,2]
[408447792,1773647432271,-325.79,2.3e-05,2]
[408447794,1773647432281,-752.29916142,2.3e-05,2]
[408447796,1773647432292,-130.27083858,2.3e-05,2]
[408447798,1773647432302,-1908.17231409,0.00010544,2]
[408447800,1773647432313,-7528.44521549,0.00010651,2]
[408447802,1773647432322,-199.0,0.00010672,2]
[408447804,1773647432332,-773.83368042,0.00010751,2]
[408447809,1773647432369,-997.32222237,0.00010751,2]
[408447812,1773647432381,-12855.81806096,0.00010751,2]
[408447814,1773647432392,-167.86801948,0.00010751,2]
[408447815,1773647432401,-108.49198052,0.00010751,2]
[408447818,1773647432413,-590.96901948,0.00010751,2]
[408447820,1773647432423,-185.769,0.00010751,2]
[408447821,1773647432432,-4108.50037683,0.00010851,2]
[408447983,1773647441033,-570.85184417,0.00010851,2]
[408447990,1773647443798,-658.83621924,0.00010851,2]
[408447991,1773647443809,-1522.895,0.00010851,2]
[408447992,1773647443821,-1115.48048082,0.00010851,2]
[408447994,1773647443831,-382.35591491,0.00010851,2]
[408448003,1773647446396,-3877.07546754,0.00010851,2]
[408448005,1773647446408,-4389.45192753,0.00010851,2]
[408448006,1773647446417,-29265.17227245,0.00010947,2]
[408448138,1773648632520,-1874.65562877,9.606e-05,2]
[408448140,1773648632531,-555.0,9.606e-05,2]
[408448142,1773648632542,-252.67516527,9.807e-05,2]
[408448145,1773648632558,-4188.15366813,9.807e-05,2]
[408448147,1773648632568,-1200.0,9.851e-05,2]
[408448149,1773648632579,-985.51372893,9.852e-05,2]
[408448152,1773648632589,-319.38696159,9.852e-05,2]
[408448155,1773648632599,-300.0,9.867e-05,2]
[408448158,1773648632610,-234.0,9.867e-05,2]
[408448161,1773648632621,-518.47010805,9.868e-05,2]
[408448164,1773648632631,-933.2461945,9.868e-05,2]
[408448167,1773648632642,-384.85221029,9.868e-05,2]
[408448171,1773648632652,-9208.29529219,9.979e-05,2]
[408448174,1773648632662,-2686.00178879,9.979e-05,2]
[408448178,1773648632671,-152.11907014,0.0001,2]
[408448181,1773648632681,-3121.94108484,0.00010079,2]
[408448183,1773648632694,-2250.57923317,0.00010079,2]
[408448184,1773648632704,-5455.17673365,0.00010179,2]
[408448185,1773648632713,-1769.39599438,0.00010279,2]
[408448186,1773648632727,-4129.94937185,0.00010279,2]
[408448187,1773648632737,-300.0,0.0001028,2]
[408448188,1773648632748,-300.0,0.0001028,2]
[408448189,1773648632758,-300.0,0.0001028,2]
[408448190,1773648632768,-300.0,0.0001028,2]
[408448191,1773648632779,-300.0,0.0001028,2]
[408448192,1773648632789,-300.0,0.0001028,2]
[408448193,1773648632799,-300.0,0.0001028,2]
[408448194,1773648632811,-300.0,0.0001028,2]
[408448195,1773648632821,-300.0,0.0001028,2]
[408448196,1773648632833,-300.0,0.0001028,2]
[408448197,1773648632843,-300.0,0.0001028,2]
[408448198,1773648632854,-300.0,0.0001028,2]
[408448199,1773648632864,-270.05062815,0.0001028,2]
[408448232,1773648639153,-29.94937185,0.0001028,2]
[408448233,1773648639162,-300.0,0.0001028,2]
[408448234,1773648639172,-300.0,0.0001028,2]
[408448235,1773648639182,-500.0,0.00010375,2]
[408448236,1773648639195,-500.0,0.00010375,2]
[408448237,1773648639205,-500.0,0.00010375,2]
[408448238,1773648639214,-500.0,0.00010378,2]
[408448239,1773648639223,-6343.51399893,0.00010379,2]
[408448240,1773648639232,-500.0,0.00010474,2]
[408448241,1773648639242,-600.0,0.00010485,2]
[408448242,1773648639251,-886.49935883,0.00010558,2]
[408448243,1773648639260,-172.27381298,0.00010558,2]
[408448244,1773648639269,-689.09525193,0.00010558,2]
[408448245,1773648639281,-2000.0,0.000106,7]
[408448246,1773648639290,-500.0,0.00010652,2]
[408448247,1773648639300,-300.0,0.00010854,2]
[408448248,1773648639309,-252.757454,0.00010856,2]
[408448249,1773648639319,-500.0,0.00010926,2]
[408448251,1773648639328,-420.63583936,0.00010934,2]
[408448252,1773648639338,-757.14451085,0.00010934,2]
[408448254,1773648639348,-329.50866945,0.00010934,2]
[408448256,1773648639358,-593.115605,0.00010934,2]
[408448258,1773648639367,-199.73681,0.00010997,2]
[408448260,1773648639376,-151.0,0.00010999,2]
[408448262,1773648639386,-500.0,0.00010999,2]
[408448264,1773648639396,-500.0,0.00010999,2]
[408448266,1773648639406,-500.0,0.00010999,2]
[408448268,1773648639416,-500.0,0.00010999,2]
[408448270,1773648639426,-500.0,0.00010999,2]
[408448272,1773648639435,-500.0,0.00010999,2]
[408448274,1773648639444,-500.0,0.00010999,2]
[408448276,1773648639454,-500.0,0.00010999,2]
[408448278,1773648639463,-500.0,0.00010999,2]
[408448280,1773648639472,-233.02114731,0.00010999,2]
[408448282,1773648639485,-500.0,0.00010999,2]
[408448284,1773648639494,-500.0,0.00010999,2]
[408448286,1773648639504,-500.0,0.00010999,2]
[408448288,1773648639515,-206.3619793,0.00010999,2]
[408448538,1773648647097,-1874.65562877,0.00011,2]
[408448539,1773648749635,358.4,3e-05,10]
[408448598,1773649832110,-5000.0,7.804e-05,2]
[408448599,1773649832120,-162.21531717,7.883e-05,2]
[408448600,1773649832130,-531.0,7.883e-05,2]
[408448601,1773649832140,-234.0,8.26e-05,2]
[408448602,1773649832149,-1200.0,8.26e-05,2]
[408448603,1773649832159,-300.0,8.26e-05,2]
[408448604,1773649832168,-12239.1320706,8.261e-05,2]
[408448605,1773649832178,-500.0,8.424e-05,2]
[408448606,1773649832189,-183.39674629,8.424e-05,2]
[408448607,1773649832199,-500.0,8.424e-05,2]
[408448608,1773649832208,-500.0,8.424e-05,2]
[408448609,1773649832217,-500.0,8.424e-05,2]
[408448610,1773649832227,-500.0,8.424e-05,2]
[408448611,1773649832237,-500.0,8.424e-05,2]
[408448612,1773649832247,-500.0,8.424e-05,2]
[408448613,1773649832257,-500.0,8.424e-05,2]
[408448614,1773649832266,-500.0,8.424e-05,2]
[408448615,1773649832276,-500.0,8.424e-05,2]
[408448616,1773649832286,-500.0,8.424e-05,2]
[408448617,1773649832295,-500.0,8.424e-05,2]
[408448618,1773649832304,-543.30073055,8.424e-05,2]
[408448619,1773649832314,-500.0,8.424e-05,2]
[408448620,1773649832325,-500.0,8.424e-05,2]
[408448621,1773649832334,-500.0,8.424e-05,2]
[408448622,1773649832346,-500.0,8.424e-05,2]
[408448623,1773649832356,-500.0,8.424e-05,2]
[408448624,1773649832365,-21.95513539,8.424e-05,2]
[408448625,1773649832377,-478.04486461,8.424e-05,2]
[408448626,1773649832387,-500.0,8.424e-05,2]
[408448627,1773649832396,-500.0,8.424e-05,2]
[408448628,1773649832406,-500.0,8.424e-05,2]
[408448629,1773649832416,-500.0,8.424e-05,2]
[408448630,1773649832427,-500.0,8.424e-05,2]
[408448631,1773649832437,-500.0,8.424e-05,2]
[408448632,1773649832447,-500.0,8.424e-05,2]
[408448633,1773649832457,-500.0,8.424e-05,2]
[408448634,1773649832466,-500.0,8.424e-05,2]
[408448635,1773649832476,-500.0,8.424e-05,2]
[408448636,1773649832485,-500.0,8.424e-05,2]
[408448637,1773649832495,-500.0,8.424e-05,2]
[408448638,1773649832505,-500.0,8.424e-05,2]
[408448639,1773649832514,-500.0,8.424e-05,2]
[408448640,1773649832524,-375.48240901,8.424e-05,2]
[408448641,1773649832534,-500.0,8.424e-05,2]
[408448642,1773649832543,-500.0,8.424e-05,2]
[408448643,1773649832553,-500.0,8.424e-05,2]
[408448644,1773649832562,-83.0791101,8.424e-05,2]